bitfinex/quotes_BTCUSD_20251011
["timestamp","ask_amount","ask_price","bid_price","bid_amount"]
[1760222804505,0.51948487,111430.0,111420.0,0.05184379]
[1760222804722,0.54687487,111430.0,111420.0,0.05184379]
[1760222804956,0.34,111430.0,111420.0,0.05184379]
[1760222805171,0.51948487,111430.0,111420.0,0.27426477]
[1760222805384,0.34,111430.0,111420.0,0.27426477]
[1760222806039,0.00253325,111440.0,111430.0,0.17948487]
[1760222806260,0.34253325,111440.0,111430.0,0.27313487]
[1760222806490,0.00253325,111440.0,111430.0,0.72648138]
[1760222807163,0.00253325,111440.0,111430.0,0.27313487]
[1760222807591,0.00253325,111440.0,111430.0,0.75197565]
[1760222808063,0.00253325,111440.0,111430.0,0.75297565]
[1760222808272,0.00253325,111440.0,111430.0,0.75397565]
[1760222809217,0.00253325,111440.0,111430.0,0.05273]
[1760222809218,0.6987428,111440.0,111430.0,0.05273]
[1760222809403,0.01304325,111440.0,111430.0,0.27513487]
[1760222809903,0.01304325,111440.0,111430.0,0.27313487]
[1760222811478,0.00253325,111440.0,111430.0,0.27313487]
[1760222815459,0.00253325,111440.0,111430.0,0.72671571]
[1760222818760,0.00253325,111440.0,111430.0,0.72771571]
[1760222819147,0.00253325,111440.0,111430.0,0.72871571]
[1760222823038,0.00253325,111440.0,111430.0,1.02441125]
[1760222825043,0.00253325,111440.0,111430.0,1.07305609]
[1760222826165,0.00253325,111440.0,111430.0,0.57083041]
[1760222826818,0.00253325,111440.0,111430.0,0.27513487]
[1760222827920,0.00253325,111440.0,111430.0,0.27413487]
[1760222828344,0.00253325,111440.0,111430.0,0.27513487]
[1760222828766,0.00253325,111440.0,111430.0,0.27313487]
[1760222830539,0.22000202,111440.0,111430.0,0.05073]
[1760222830788,0.22000202,111440.0,111430.0,0.23021487]
[1760222830789,0.04053325,111440.0,111430.0,0.23021487]
[1760222830993,0.00253325,111440.0,111430.0,0.27441487]
[1760222831898,0.00253325,111440.0,111430.0,0.54311487]
[1760222833570,0.00253325,111440.0,111430.0,0.98521026]
[1760222833925,0.00253325,111440.0,111430.0,0.54311487]
[1760222835031,0.18200202,111440.0,111430.0,0.54311487]
[1760222835231,0.19251202,111440.0,111430.0,0.54311487]
[1760222835903,1.00209741,111440.0,111430.0,0.2687]
[1760222836235,0.51948487,111430.0,111420.0,0.00111379]
[1760222836506,0.97909026,111430.0,111420.0,0.00111379]
[1760222836710,1.00658026,111430.0,111420.0,0.00111379]
[1760222836909,0.56448487,111430.0,111420.0,0.00111379]
[1760222837126,1.08499532,111430.0,111420.0,0.00111379]
[1760222840120,5.99256302,111430.0,111420.0,0.00111379]
[1760222840340,5.88699426,111430.0,111420.0,0.00111379]
[1760222842267,5.91414796,111430.0,111420.0,0.00111379]
[1760222842788,5.88699426,111430.0,111420.0,0.00111379]
[1760222843169,5.88799426,111430.0,111420.0,0.00111379]
[1760222843790,5.88899426,111430.0,111420.0,0.00111379]
[1760222844937,5.9777136,111430.0,111420.0,0.00111379]
[1760222847463,5.53561821,111430.0,111420.0,0.00111379]
[1760222847669,5.95600822,111430.0,111420.0,0.00111379]
[1760222848753,5.56277191,111430.0,111420.0,0.00111379]
[1760222848960,5.84013518,111430.0,111420.0,0.00111379]
[1760222849161,5.61833387,111430.0,111420.0,0.00111379]
[1760222849368,5.79781874,111430.0,111420.0,0.00111379]
[1760222853563,5.82497244,111430.0,111420.0,0.00111379]
[1760222853681,5.85512434,111430.0,111420.0,0.00111379]
[1760222853887,5.94384368,111430.0,111420.0,0.00111379]
[1760222854083,1.06342968,111430.0,111420.0,0.00111379]
[1760222854289,5.94384368,111430.0,111420.0,0.00111379]
[1760222854795,5.96316374,111430.0,111420.0,0.00111379]
[1760222855644,5.45105619,111430.0,111420.0,0.00111379]
[1760222855842,5.42390249,111430.0,111420.0,0.00111379]
[1760222856061,5.8171388,111430.0,111420.0,0.00111379]
[1760222858883,0.9367248,111430.0,111420.0,0.00111379]
[1760222859058,5.8171388,111430.0,111420.0,0.00111379]
[1760222859257,0.96891724,111430.0,111420.0,0.00111379]
[1760222859458,5.84933124,111430.0,111420.0,0.00111379]
[1760222860053,0.98570377,111430.0,111420.0,0.00111379]
[1760222860281,5.7996288,111430.0,111420.0,0.00111379]
[1760222860771,5.8533688,111430.0,111420.0,0.00111379]
[1760222861792,0.56369849,111430.0,111420.0,0.03069379]
[1760222861995,0.53620849,111430.0,111420.0,0.09355379]
[1760222862678,0.53620849,111430.0,111420.0,0.27305477]
[1760222862890,0.33640356,111430.0,111420.0,0.27305477]
[1760222863100,0.03772,111430.0,111420.0,0.27305477]
[1760222863454,0.24365487,111430.0,111420.0,0.23227477]
[1760222863660,0.03772,111430.0,111420.0,0.23227477]
[1760222863865,0.03772,111430.0,111420.0,0.27305477]
[1760222864881,0.03772,111430.0,111420.0,0.23227477]
[1760222864882,0.24365487,111430.0,111420.0,0.23227477]
[1760222865442,0.58365487,111430.0,111420.0,0.00111379]
[1760222865646,0.6684348,111430.0,111420.0,0.03069379]
[1760222865846,0.58365487,111430.0,111420.0,0.03069379]
[1760222866203,0.58365487,111430.0,111420.0,0.05277379]
[1760222866808,0.42305567,111430.0,111420.0,0.05277379]
[1760222868357,0.81629198,111430.0,111420.0,0.00111379]
[1760222868601,0.86772658,111430.0,111420.0,0.00111379]
[1760222868811,0.47449027,111430.0,111420.0,0.00111379]
[1760222868981,0.86772658,111430.0,111420.0,0.00111379]
[1760222869602,0.86972658,111430.0,111420.0,0.00111379]
[1760222870500,0.42505567,111430.0,111420.0,0.00111379]
[1760222870634,0.342,111430.0,111420.0,0.27305477]
[1760222871219,0.002,111430.0,111420.0,0.66629108]
[1760222871603,0.001,111430.0,111420.0,0.66629108]
[1760222871828,0.001,111430.0,111420.0,0.27305477]
[1760222872032,0.52200421,111440.0,111430.0,0.17948487]
[1760222872234,0.52200421,111440.0,111430.0,0.27192487]
[1760222872696,0.34253325,111440.0,111430.0,0.27192487]
[1760222875228,0.52200202,111440.0,111430.0,0.27192487]
[1760222876882,0.34253325,111440.0,111430.0,0.27192487]
[1760222877293,0.52200202,111440.0,111430.0,0.27192487]
[1760222877497,0.34253325,111440.0,111430.0,0.27192487]
[1760222879582,0.52200202,111440.0,111430.0,0.27192487]
[1760222880259,0.52200202,111440.0,111430.0,0.09244]
[1760222880463,0.52200202,111440.0,111420.0,0.24347429]
[1760222880691,0.52200202,111440.0,111430.0,0.02958]
[1760222880845,0.52200202,111440.0,111430.0,0.05166]
[1760222881996,0.52200202,111440.0,111420.0,0.24347429]
[1760222882340,0.52200202,111440.0,111430.0,0.20922487]
[1760222882542,0.34253325,111440.0,111430.0,0.27292487]
[1760222883323,0.34253325,111440.0,111430.0,0.54162487]
[1760222883683,0.34253325,111440.0,111430.0,0.27292487]
[1760222883819,0.00253325,111440.0,111430.0,0.27292487]
[1760222887696,0.19541648,111460.0,111440.0,0.17946877]
[1760222887918,0.17945266,111450.0,111440.0,0.24316877]
[1760222888128,0.19541648,111460.0,111450.0,0.05035]
[1760222889224,0.19641648,111460.0,111450.0,0.05035]
[1760222889379,0.19741648,111460.0,111450.0,0.05035]
[1760222889564,0.53741648,111460.0,111450.0,0.05035]
[1760222889759,0.53641648,111460.0,111450.0,0.05035]
[1760222890199,0.53741648,111460.0,111450.0,0.05035]
[1760222890430,0.53641648,111460.0,111450.0,0.05035]
[1760222890758,0.53741648,111460.0,111450.0,0.05035]
[1760222891460,0.349,111460.0,111450.0,0.09344]
[1760222891619,0.342,111460.0,111450.0,0.27289266]
[1760222892023,0.002,111460.0,111450.0,0.27289266]
[1760222892422,0.001,111460.0,111450.0,0.27289266]
[1760222893419,0.38916589,111470.0,111460.0,0.17943656]
[1760222893619,0.38916589,111470.0,111460.0,0.27287656]
[1760222893821,0.39092106,111470.0,111460.0,0.27287656]
[1760222894026,0.57034153,111470.0,111460.0,0.27287656]
[1760222894235,0.58274307,111470.0,111460.0,0.27287656]
[1760222894654,0.5827933,111470.0,111460.0,0.27287656]
[1760222894865,0.57039176,111470.0,111460.0,0.27287656]
[1760222895829,0.39097129,111470.0,111460.0,0.27287656]
[1760222897133,0.57039176,111470.0,111460.0,0.27287656]
[1760222897332,0.39097129,111470.0,111460.0,0.27287656]
[1760222897848,0.57039176,111470.0,111460.0,0.05035]
[1760222898069,0.64626885,111470.0,111460.0,0.05035]
[1760222898284,0.57039176,111470.0,111460.0,0.05035]
[1760222899956,0.57039176,111470.0,111460.0,0.09344]
[1760222900402,0.57039176,111470.0,111440.0,0.02061]
[1760222900403,0.17943656,111460.0,111440.0,0.02061]
[1760222900607,0.17945266,111450.0,111440.0,0.22981649]
[1760222900803,0.17945266,111450.0,111430.0,0.000963]
[1760222900804,0.17946877,111440.0,111430.0,0.000963]
[1760222901018,0.0271537,111440.0,111430.0,0.23079787]
[1760222901225,4.880414,111440.0,111430.0,0.23079787]
[1760222901464,0.17946877,111440.0,111430.0,0.27388787]
[1760222902105,0.51945266,111450.0,111430.0,0.27388787]
[1760222902328,0.51945266,111450.0,111440.0,0.02061]
[1760222902543,0.51945266,111450.0,111440.0,0.05035]
[1760222902761,0.51945266,111450.0,111440.0,0.09344]
[1760222902985,0.51945266,111450.0,111440.0,0.05035]
[1760222903197,0.17946877,111440.0,111430.0,0.24414787]
[1760222903612,0.17946877,111440.0,111430.0,0.27388787]
[1760222906054,0.91284811,111450.0,111430.0,0.27388787]
[1760222906489,0.91284811,111450.0,111440.0,0.02061]
[1760222906932,0.91284811,111450.0,111440.0,0.05035]
[1760222907561,0.96217214,111450.0,111440.0,0.05035]
[1760222908714,0.96217214,111450.0,111440.0,0.02061]
[1760222908933,0.96217214,111450.0,111440.0,0.05035]
[1760222910026,0.34058516,111450.0,111440.0,0.09344]
[1760222910251,0.96217214,111450.0,111440.0,0.09344]
[1760222910895,0.96217214,111450.0,111440.0,0.27290877]
[1760222911098,0.62217214,111450.0,111440.0,0.27290877]
[1760222911560,0.66530696,111450.0,111440.0,0.05035]
[1760222912190,0.62158698,111450.0,111440.0,0.05035]
[1760222914479,0.96158698,111450.0,111440.0,0.05035]
[1760222917254,0.51945266,111450.0,111440.0,0.22981877]
[1760222917488,0.96158698,111450.0,111440.0,0.0927]
[1760222917921,0.96158698,111450.0,111440.0,0.05035]
[1760222918770,1.05030632,111450.0,111440.0,0.05035]
[1760222918969,1.05030632,111450.0,111430.0,0.24340787]
[1760222918970,0.51946877,111440.0,111430.0,0.24340787]
[1760222919108,0.96160309,111440.0,111430.0,0.24340787]
[1760222919285,0.51946877,111440.0,111430.0,0.27018787]
[1760222919716,0.34,111440.0,111430.0,0.27018787]
[1760222920356,0.96160309,111440.0,111430.0,0.22783787]
[1760222920556,0.96160309,111440.0,111430.0,0.18044787]
[1760222920756,1.05032243,111440.0,111430.0,0.18044787]
[1760222920971,0.51946877,111440.0,111430.0,0.22936787]
[1760222921335,0.78213432,111440.0,111430.0,0.27176787]
[1760222921579,0.34,111440.0,111430.0,0.27176787]
[1760222923198,0.34,111440.0,111430.0,0.71390219]
[1760222925726,0.37205388,111440.0,111430.0,0.27176787]
[1760222925931,0.34,111440.0,111430.0,0.27176787]
[1760222926340,0.34,111440.0,111430.0,0.71390219]
[1760222929421,0.34,111440.0,111430.0,0.27176787]
[1760222929622,0.96160309,111440.0,111430.0,0.18020787]
[1760222929830,1.04338223,111440.0,111430.0,0.18020787]
[1760222930233,1.04338223,111440.0,111430.0,0.20796787]
[1760222930439,0.96160309,111440.0,111430.0,0.22912787]
[1760222933655,0.51946877,111440.0,111430.0,0.27176787]
[1760222934085,0.34,111440.0,111430.0,0.71390219]
[1760222935488,0.34,111440.0,111430.0,0.27176787]
[1760222935687,0.34,111440.0,111430.0,0.71390219]
[1760222942905,0.34,111440.0,111430.0,0.27176787]
[1760222943120,0.34,111440.0,111430.0,0.71390219]
[1760222943901,0.34,111440.0,111430.0,0.27176787]
[1760222944104,0.96160309,111440.0,111430.0,0.22912787]
[1760222945702,0.96160309,111440.0,111430.0,0.26935787]
[1760222945931,0.96160309,111440.0,111430.0,0.049643]
[1760222946133,0.98875679,111440.0,111430.0,0.000723]
[1760222946269,0.96160309,111440.0,111430.0,0.029503]
[1760222946448,0.96160309,111440.0,111430.0,0.000723]
[1760222947278,0.96160309,111440.0,111430.0,0.029503]
[1760222947676,0.96160309,111440.0,111430.0,0.298203]
[1760222948880,0.51946877,111440.0,111430.0,0.298203]
[1760222949130,0.96160309,111440.0,111430.0,0.298203]
[1760222950869,1.05032243,111440.0,111430.0,0.298203]
[1760222951116,1.05032243,111440.0,111430.0,0.269423]
[1760222952118,5.93073643,111440.0,111430.0,0.269423]
[1760222952353,5.95789013,111440.0,111430.0,0.269423]
[1760222952737,5.93073643,111440.0,111430.0,0.269423]
[1760222953200,5.93073643,111440.0,111430.0,0.000723]
[1760222953435,5.95789013,111440.0,111430.0,0.000723]
[1760222954108,5.95889013,111440.0,111430.0,0.000723]
[1760222954329,5.95989013,111440.0,111430.0,0.000723]
[1760222954546,5.95889013,111440.0,111430.0,0.000723]
[1760222954990,5.95989013,111440.0,111430.0,0.000723]
[1760222955192,5.40188277,111440.0,111430.0,0.000723]
[1760222955401,5.84401709,111440.0,111430.0,0.000723]
[1760222960863,5.92850885,111440.0,111430.0,0.000723]
[1760222961042,5.90132269,111440.0,111430.0,0.000723]
[1760222961267,5.92070403,111440.0,111430.0,0.000723]
[1760222961401,6.00942337,111440.0,111430.0,0.000723]
[1760222962455,1.12900937,111440.0,111430.0,0.000723]
[1760222962654,6.00942337,111440.0,111430.0,0.000723]
[1760222963007,6.45155769,111440.0,111430.0,0.000723]
[1760222963199,1.69302017,111440.0,111430.0,0.000723]
[1760222963405,6.60604142,111440.0,111430.0,0.000723]
[1760222963625,1.72562742,111440.0,111430.0,0.000723]
[1760222963822,6.60604142,111440.0,111430.0,0.000723]
[1760222964045,1.72462742,111440.0,111430.0,0.000723]
[1760222964196,6.60404142,111440.0,111430.0,0.000723]
[1760222964405,6.60604142,111440.0,111430.0,0.000723]
[1760222964788,6.60604142,111440.0,111430.0,1e-08]
[1760222964789,6.57888772,111440.0,111430.0,1e-08]
[1760222965024,0.34,111410.0,111400.0,0.07162362]
[1760222965218,5.9241844,111410.0,111400.0,0.07162362]
[1760222965445,0.17954933,111390.0,111380.0,0.09181362]
[1760222965649,0.62168365,111390.0,111380.0,0.12059362]
[1760222965828,0.62168365,111390.0,111380.0,0.04897]
[1760222966043,0.96168365,111390.0,111380.0,0.04897]
[1760222966267,0.96168365,111390.0,111360.0,0.98216507]
[1760222966268,0.51956545,111380.0,111360.0,0.2400177]
[1760222966460,0.96169977,111380.0,111370.0,0.02878]
[1760222967956,0.96169977,111380.0,111370.0,0.26878157]
[1760222968379,0.96169977,111380.0,111370.0,0.0892]
[1760222968864,0.96169977,111380.0,111370.0,0.04897]
[1760222969057,1.05041911,111380.0,111370.0,0.04897]
[1760222969401,0.17958157,111370.0,111360.0,0.08758796]
[1760222969602,0.17958157,111370.0,111360.0,0.04912069]
[1760222970210,0.91311455,111370.0,111360.0,0.00015069]
[1760222970485,1.00183389,111370.0,111360.0,0.00015069]
[1760222971716,1.01231564,111370.0,111360.0,0.00015069]
[1760222971917,1.01231564,111370.0,111360.0,0.00483584]
[1760222972118,0.61878266,111370.0,111360.0,0.00483584]
[1760222972556,1.01231564,111370.0,111360.0,0.00483584]
[1760222974783,0.61878266,111370.0,111360.0,0.00483584]
[1760222975073,0.53006332,111370.0,111360.0,0.03260584]
[1760222975487,0.53006332,111370.0,111360.0,0.00483584]
[1760222979754,0.53006332,111370.0,111360.0,0.09375584]
[1760222980384,0.19006332,111370.0,111360.0,0.09375584]
[1760222980590,0.19006332,111370.0,111360.0,0.27335354]
[1760222982575,0.19006332,111370.0,111360.0,0.09375584]
[1760222984399,0.2663795,111370.0,111360.0,0.05337584]
[1760222984967,5.54032648,111370.0,111360.0,0.00483584]
[1760222985750,5.90748018,111370.0,111360.0,0.00483584]
[1760222986160,6.35835122,111370.0,111360.0,0.00483584]
[1760222986387,5.97367649,111370.0,111360.0,0.00483584]
[1760222986593,6.40668905,111370.0,111360.0,0.00483584]
[1760222987320,6.40768905,111370.0,111360.0,0.00483584]
[1760222987516,6.476219,111370.0,111360.0,0.00483584]
[1760222988041,6.50879427,111370.0,111360.0,0.00483584]
[1760222988301,6.50779427,111370.0,111360.0,0.00483584]
[1760222988626,1.62838027,111370.0,111360.0,0.00483584]
[1760222988747,6.50879427,111370.0,111360.0,0.00483584]
[1760222989156,6.53479426,111370.0,111360.0,0.00483584]
[1760222989402,6.51561576,111370.0,111360.0,0.00483584]
[1760222990243,1.63520176,111370.0,111360.0,0.00483584]
[1760222990450,6.53193008,111370.0,111360.0,0.00483584]
[1760222990654,1.65151608,111370.0,111360.0,0.00483584]
[1760222990858,6.53193008,111370.0,111360.0,0.00483584]
[1760222991311,1.65151608,111370.0,111360.0,0.00483584]
[1760222991516,6.48341049,111370.0,111360.0,0.00483584]
[1760222991843,1.60299649,111370.0,111360.0,0.00483584]
[1760222992038,6.48341049,111370.0,111360.0,0.00483584]
[1760222992599,1.60299649,111370.0,111360.0,0.00483584]
[1760222992812,6.34165327,111370.0,111360.0,0.00483584]
[1760222993022,6.52123484,111370.0,111360.0,0.00483584]
[1760222993853,1.64082084,111370.0,111360.0,0.00483584]
[1760222994078,6.52123484,111370.0,111360.0,0.00483584]
[1760222994309,1.64082084,111370.0,111360.0,0.00483584]
[1760222994959,6.52123484,111370.0,111360.0,0.00483584]
[1760222995168,1.64082084,111370.0,111360.0,0.00483584]
[1760222995378,1.64551587,111370.0,111360.0,0.00483584]
[1760222995513,6.52592987,111370.0,111360.0,0.00483584]
[1760222996583,1.65586895,111370.0,111360.0,0.00483584]
[1760222996795,6.53628295,111370.0,111360.0,0.00483584]
[1760222998776,1.26233597,111370.0,111360.0,0.00483584]
[1760222998988,6.53628295,111370.0,111360.0,0.00483584]
[1760222999194,6.14274997,111370.0,111360.0,0.00483584]
[1760223001291,6.0142801,111370.0,111360.0,0.00483584]
[1760223001536,6.02319233,111370.0,111360.0,0.00483584]
[1760223002288,5.99819234,111370.0,111360.0,0.00483584]
[1760223002633,5.99097399,111370.0,111360.0,0.00483584]
[1760223003059,1.11055999,111370.0,111360.0,0.00483584]
[1760223003220,6.07969333,111370.0,111360.0,0.00483584]
[1760223003433,6.10302289,111370.0,111360.0,0.00483584]
[1760223003673,6.03449294,111370.0,111360.0,0.00483584]
[1760223004400,1.15407894,111370.0,111360.0,0.00483584]
[1760223004605,6.48236578,111370.0,111360.0,0.00483584]
[1760223004804,6.43185006,111370.0,111360.0,0.00483584]
[1760223004968,6.48018462,111370.0,111360.0,0.00483584]
[1760223005167,1.59977062,111370.0,111360.0,0.00483584]
[1760223005408,6.48018462,111370.0,111360.0,0.00483584]
[1760223005610,6.43185006,111370.0,111360.0,0.00483584]
[1760223006109,1.55143606,111370.0,111360.0,0.00483584]
[1760223006408,6.43185006,111370.0,111360.0,0.00483584]
[1760223007259,6.43188252,111370.0,111360.0,1e-08]
[1760223007510,6.45903622,111370.0,111360.0,1e-08]
[1760223007733,6.45907848,111370.0,111360.0,1e-08]
[1760223009043,6.43189232,111370.0,111360.0,1e-08]
[1760223009251,5.64482636,111370.0,111360.0,1e-08]
[1760223009465,6.43189232,111370.0,111360.0,1e-08]
[1760223013636,6.03835934,111370.0,111360.0,1e-08]
[1760223013838,6.43189232,111370.0,111360.0,1e-08]
[1760223015276,5.40006009,111330.0,111320.0,0.13752362]
[1760223015501,5.40006009,111330.0,111320.0,0.13802493]
[1760223015502,5.43614676,111330.0,111320.0,0.13802493]
[1760223015710,5.43614676,111330.0,111320.0,0.16549493]
[1760223015882,5.43614676,111330.0,111320.0,0.09621561]
[1760223016215,5.50905141,111330.0,111320.0,0.09621561]
[1760223017292,5.43614676,111330.0,111320.0,0.09621561]
[1760223018451,0.55573276,111330.0,111320.0,0.09621561]
[1760223019431,0.55573276,111330.0,111320.0,0.27587784]
[1760223020043,0.37608667,111330.0,111320.0,0.27587784]
[1760223020244,0.35674672,111330.0,111320.0,0.27587784]
[1760223020493,0.34,111330.0,111320.0,0.27587784]
[1760223020772,0.34,111330.0,111320.0,0.66941082]
[1760223021179,0.34,111330.0,111320.0,0.27587784]
[1760223022634,0.51964609,111330.0,111320.0,0.27587784]
[1760223023480,0.21740373,111340.0,111320.0,0.27587784]
[1760223023633,0.21738996,111340.0,111330.0,0.24514609]
[1760223023839,0.03776,111340.0,111330.0,0.66614907]
[1760223024038,5.0600117,111360.0,111350.0,0.17960906]
[1760223024202,0.19644915,111360.0,111350.0,0.09297]
[1760223024428,0.19644915,111360.0,111340.0,0.02181]
[1760223024429,0.17961383,111350.0,111340.0,0.02181]
[1760223024636,0.17961383,111350.0,111340.0,0.0655]
[1760223024836,0.58639596,111350.0,111340.0,0.04928]
[1760223025044,0.58909338,111350.0,111340.0,0.04928]
[1760223025247,0.57224681,111350.0,111340.0,0.04928]
[1760223025446,0.57224681,111350.0,111340.0,0.09297]
[1760223025658,0.17871383,111350.0,111340.0,0.09297]
[1760223026069,0.17871383,111350.0,111340.0,0.27259996]
[1760223026271,0.51971383,111350.0,111340.0,0.09297]
[1760223027160,0.51971383,111350.0,111340.0,0.04928]
[1760223027161,0.60843317,111350.0,111340.0,0.04928]
[1760223027363,5.06004396,111340.0,111330.0,0.0655]
[1760223027561,0.17962996,111340.0,111330.0,0.09297]
[1760223028782,0.57316294,111340.0,111330.0,0.04928]
[1760223029803,0.57316294,111340.0,111320.0,0.06640131]
[1760223029804,5.45357694,111340.0,111320.0,0.06640131]
[1760223030007,0.57317907,111330.0,111320.0,0.05018131]
[1760223030200,0.17964609,111330.0,111320.0,0.22984354]
[1760223030541,0.17964609,111330.0,111320.0,0.23218784]
[1760223030796,0.17962996,111340.0,111330.0,0.17964609]
[1760223031007,0.34,111340.0,111330.0,0.27261609]
[1760223031149,0.34,111340.0,111330.0,0.27437416]
[1760223031548,0.34,111340.0,111330.0,0.71725395]
[1760223032214,0.17960027,111360.0,111340.0,0.1796173]
[1760223032421,4.880414,111360.0,111350.0,0.71355362]
[1760223032627,5.220414,111360.0,111350.0,0.71355362]
[1760223032854,0.1242561,111370.0,111350.0,0.71355362]
[1760223033090,0.04906468,111370.0,111360.0,0.2431577]
[1760223033313,0.04906468,111370.0,111360.0,0.09106]
[1760223033314,0.22864625,111370.0,111360.0,0.09106]
[1760223033546,0.65465323,111370.0,111360.0,0.09106]
[1760223034190,0.65465323,111370.0,111360.0,0.09156131]
[1760223034812,0.65465323,111370.0,111360.0,0.27115901]
[1760223035026,1.09753302,111370.0,111360.0,0.04799131]
[1760223035275,0.65465323,111370.0,111360.0,0.04799131]
[1760223035485,1.09753302,111370.0,111360.0,0.09156131]
[1760223035770,1.01152604,111370.0,111360.0,0.09156131]
[1760223036588,1.01152604,111370.0,111360.0,0.00050131]
[1760223036777,5.89194004,111370.0,111360.0,0.00050131]
[1760223036952,5.91909374,111370.0,111360.0,0.00050131]
[1760223037384,5.47621395,111370.0,111360.0,0.00050131]
[1760223037590,6.00781308,111370.0,111360.0,0.00050131]
[1760223038722,5.91909374,111370.0,111360.0,0.00050131]
[1760223039128,5.91909374,111370.0,111360.0,0.02800131]
[1760223039329,5.89194004,111370.0,111360.0,0.04799131]
[1760223040724,5.89194004,111370.0,111360.0,0.09156131]
[1760223040725,1.01152604,111370.0,111360.0,0.09156131]
[1760223042338,0.56864625,111370.0,111360.0,0.09156131]
[1760223042543,1.01152604,111370.0,111360.0,0.09156131]
[1760223043059,0.56864625,111370.0,111360.0,0.27115901]
[1760223043333,0.56864625,111370.0,111360.0,0.09156131]
[1760223043536,0.55830531,111370.0,111360.0,0.27115901]
[1760223043740,0.37872374,111370.0,111360.0,0.7140388]
[1760223044178,0.37872374,111370.0,111360.0,0.27115901]
[1760223044383,0.37872374,111370.0,111360.0,0.7140388]
[1760223045215,0.55830531,111370.0,111360.0,0.7140388]
[1760223045474,0.61503206,111370.0,111360.0,0.27115901]
[1760223046471,0.43545049,111370.0,111360.0,0.27115901]
[1760223046674,0.38875565,111370.0,111360.0,0.27115901]
[1760223046880,0.03872374,111370.0,111360.0,1.15691859]
[1760223047113,0.03872374,111370.0,111360.0,1.18393358]
[1760223047649,0.03872374,111370.0,111360.0,0.74105379]
[1760223047897,0.03872374,111370.0,111360.0,1.18493358]
[1760223048570,0.00096374,111370.0,111360.0,1.18593358]
[1760223048784,0.00096374,111370.0,111360.0,0.74305379]
[1760223048986,0.00096374,111370.0,111360.0,1.18593358]
[1760223051826,0.00096374,111370.0,111360.0,0.300174]
[1760223052062,0.00096374,111370.0,111360.0,0.74305379]
[1760223053268,0.00096374,111370.0,111360.0,1.18593358]
[1760223057895,0.00096374,111370.0,111360.0,0.300174]
[1760223058101,0.00096374,111370.0,111360.0,0.74305379]
[1760223058805,0.00096374,111370.0,111360.0,0.300174]
[1760223058990,0.00096374,111370.0,111360.0,0.74305379]
[1760223059854,0.00096374,111370.0,111360.0,1.18593358]
[1760223060988,0.00096374,111370.0,111360.0,0.300174]
[1760223061136,0.00096374,111370.0,111360.0,0.74305379]
[1760223062244,0.00096374,111370.0,111360.0,0.300174]
[1760223062440,0.00096374,111370.0,111360.0,0.74305379]
[1760223062646,0.00096374,111370.0,111360.0,0.300174]
[1760223062831,0.00096374,111370.0,111360.0,0.74305379]
[1760223063381,0.00096374,111370.0,111360.0,1.01175379]
[1760223066052,0.00096374,111370.0,111360.0,1.45463358]
[1760223067053,0.00096374,111370.0,111360.0,0.568874]
[1760223067437,0.00096374,111370.0,111360.0,1.01175379]
[1760223068039,0.00096374,111370.0,111360.0,1.01075379]
[1760223068493,0.00096374,111370.0,111360.0,1.45463358]
[1760223069008,0.00096374,111370.0,111360.0,1.45363358]
[1760223069188,0.00096374,111370.0,111360.0,1.45463358]
[1760223072278,0.33171724,111390.0,111380.0,0.17956545]
[1760223072513,0.33171724,111390.0,111380.0,0.91218524]
[1760223072723,0.33171724,111390.0,111380.0,0.98343524]
[1760223073056,0.21727737,111410.0,111380.0,1.01942675]
[1760223073280,0.03776,111410.0,111400.0,0.20057321]
[1760223073469,0.03776,111410.0,111400.0,0.27182321]
[1760223073729,0.03776,111410.0,111400.0,0.714703]
[1760223073945,0.03776,111410.0,111400.0,0.27182321]
[1760223074118,0.03776,111410.0,111400.0,0.74171171]
[1760223074549,0.03549971,111410.0,111400.0,0.74186241]
[1760223076594,0.03549971,111410.0,111400.0,0.74286241]
[1760223077120,0.03549971,111410.0,111400.0,0.74386241]
[1760223082666,0.03549971,111410.0,111400.0,0.30098262]
[1760223083081,0.03784194,111410.0,111400.0,0.74386241]
[1760223083858,0.03784194,111410.0,111400.0,0.30098262]
[1760223084461,0.03784194,111410.0,111400.0,0.74386241]
[1760223084870,0.03784194,111410.0,111400.0,0.30098262]
[1760223085273,0.03784194,111410.0,111400.0,0.74386241]
[1760223086004,0.66023882,111410.0,111400.0,0.12144941]
[1760223086200,0.66023882,111410.0,111400.0,0.30098262]
[1760223086581,0.66023882,111410.0,111400.0,0.12144941]
[1760223086900,0.66023882,111410.0,111400.0,0.12044941]
[1760223087859,0.66023882,111410.0,111400.0,0.11944941]
[1760223088637,0.03784194,111410.0,111400.0,0.74186241]
[1760223089014,0.03784194,111410.0,111400.0,0.29898262]
[1760223089220,0.03784194,111410.0,111400.0,0.74186241]
[1760223090285,0.00234223,111410.0,111400.0,0.74186241]
[1760223090680,0.00234223,111410.0,111400.0,0.74286241]
[1760223090880,0.00234223,111410.0,111400.0,1.1857422]
[1760223091230,0.00234223,111410.0,111400.0,1.2158941]
[1760223091430,0.00234223,111410.0,111400.0,1.11601286]
[1760223091767,0.00234223,111410.0,111400.0,1.11701286]
[1760223091964,0.00234223,111410.0,111400.0,1.11601286]
[1760223092369,0.00234223,111410.0,111400.0,1.11701286]
[1760223092528,0.00234223,111410.0,111400.0,1.11601286]
[1760223092740,0.07162362,111450.0,111440.0,0.17946877]
[1760223092940,0.07162362,111450.0,111440.0,0.22740877]
[1760223093193,0.34,111450.0,111440.0,0.27006877]
[1760223093931,0.34,111450.0,111440.0,0.66315864]
[1760223095145,0.34,111450.0,111440.0,0.27021947]
[1760223095351,0.34,111450.0,111440.0,0.27121947]
[1760223096014,0.34,111450.0,111440.0,0.27221947]
[1760223098014,0.03772,111460.0,111450.0,0.17945266]
[1760223098191,0.03772,111460.0,111450.0,0.66299183]
[1760223098598,0.03772,111460.0,111450.0,0.68998465]
[1760223098794,0.04064595,111460.0,111450.0,0.68998465]
[1760223099541,0.04064595,111460.0,111450.0,0.29704548]
[1760223108656,0.20690377,111480.0,111460.0,0.17943656]
[1760223108867,0.21527408,111480.0,111470.0,0.02591]
[1760223109019,0.17942047,111470.0,111460.0,0.24011656]
[1760223109224,0.18000547,111470.0,111460.0,0.26602656]
[1760223109796,0.000585,111470.0,111460.0,0.26602656]
[1760223111147,0.18000547,111470.0,111460.0,0.08659]
[1760223111373,0.18000547,111470.0,111460.0,0.04538]
[1760223112032,0.21869639,111470.0,111460.0,0.01947]
[1760223112237,5.05985056,111460.0,111450.0,0.02082277]
[1760223112443,0.21870079,111470.0,111450.0,0.08794277]
[1760223112659,4.880414,111460.0,111450.0,0.26739316]
[1760223114310,0.52000987,111470.0,111460.0,0.17943656]
[1760223114456,0.52838372,111470.0,111460.0,0.26602656]
[1760223114845,0.52838372,111470.0,111460.0,0.08659]